bitfinex/quotes_ETHUSD_20250815
["timestamp","ask_amount","ask_price","bid_price","bid_amount"]
[1755227339042,0.89574155,4637.0,4636.4,3.328]
[1755227339248,1.34584155,4636.9,4636.5,3.327]
[1755227339562,0.46304155,4636.8,4636.5,3.327]
[1755227339729,0.46320854,4637.3,4636.5,3.327]
[1755227339930,0.46320854,4637.2,4636.6,2.15672957]
[1755227340116,0.46320854,4637.1,4636.6,2.15672957]
[1755227340322,0.46320854,4637.1,4636.5,4.2626]
[1755227340323,0.4327,4637.5,4636.5,3.327]
[1755227340525,2.15643608,4637.3,4636.6,3.329]
[1755227340749,0.46338583,4637.2,4636.6,3.87768861]
[1755227340951,0.46338583,4637.1,4636.6,3.87768861]
[1755227341268,0.46338583,4637.0,4636.6,3.329]
[1755227341432,2.15639766,4637.4,4636.6,3.329]
[1755227341638,0.46344082,4637.3,4636.6,3.329]
[1755227341963,0.46344082,4637.2,4636.6,3.329]
[1755227342160,0.46344082,4637.1,4636.6,3.329]
[1755227342335,0.46344082,4637.0,4636.7,3.328]
[1755227342653,2.15638344,4637.4,4636.3,0.001]
[1755227342953,0.46352942,4637.3,4636.5,2.15678925]
[1755227343254,0.8,4637.1,4636.5,3.09238925]
[1755227343823,0.8,4637.1,4636.8,2.15665801]
[1755227344151,0.8,4637.1,4636.9,3.327]
[1755227344351,0.8,4637.1,4636.9,5.97479401]
[1755227344558,0.8,4637.1,4636.9,6.52719401]
[1755227344766,0.8,4637.1,4636.9,3.9262]
[1755227345053,0.8,4637.1,4637.0,0.4444]
[1755227345753,0.46368293,4637.6,4637.0,0.9356]
[1755227345957,0.46368293,4637.5,4637.0,0.9356]
[1755227346157,2.26416356,4637.9,4637.3,0.108]
[1755227346367,0.4637115,4637.8,4637.4,3.328]
[1755227346659,2.15630208,4637.6,4637.5,3.327]
[1755227346861,3.51923063,4637.6,4637.5,3.327]
[1755227347354,3.05550794,4637.6,4637.4,3.327]
[1755227347555,3.03913423,4637.5,4637.4,3.327]
[1755227347762,3.14713423,4637.5,4637.4,3.327]
[1755227348061,0.5407,4637.5,4636.8,0.108]
[1755227348265,0.108,4637.5,4636.9,3.327]
[1755227348556,0.108,4637.5,4636.9,5.48360758]
[1755227348757,2.72785991,4637.9,4637.3,0.108]
[1755227348927,2.15624318,4637.7,4637.4,3.327]
[1755227349127,0.4637115,4637.8,4637.5,3.327]
[1755227349128,2.1563088,4637.6,4637.5,3.327]
[1755227349327,3.0391088,4637.6,4637.5,3.327]
[1755227349827,2.1563343,4637.5,4637.4,3.327]
[1755227350034,2.60545135,4637.5,4637.4,3.327]
[1755227350662,2.15625032,4637.7,4637.4,3.327]
[1755227350858,0.108,4637.9,4637.4,3.327]
[1755227351237,0.46570578,4638.2,4637.4,3.327]
[1755227351449,2.15624124,4637.7,4636.6,2.15675279]
[1755227351664,0.01641705,4637.6,4637.3,0.108]
[1755227351829,0.4327,4637.5,4637.4,3.329]
[1755227352162,0.5407,4637.5,4637.4,3.329]
[1755227352365,0.108,4637.5,4637.4,3.329]
[1755227353445,0.108,4637.8,4637.4,3.329]
[1755227353774,0.002,4638.2,4637.4,3.329]
[1755227353775,0.002,4638.2,4637.5,0.9356]
[1755227354136,0.002,4638.2,4637.6,3.335]
[1755227354636,0.002,4638.2,4638.1,0.108]
[1755227354837,0.002,4638.2,4638.1,3.444]
[1755227355038,0.002,4638.2,4638.1,4.3796]
[1755227355431,32.15800879,4638.2,4638.1,3.335]
[1755227355662,2.15605528,4638.1,4637.7,3.336]
[1755227355864,2.60522324,4638.0,4637.7,3.336]
[1755227356047,30.8828,4637.9,4637.7,3.338]
[1755227356248,3.14703962,4637.8,4637.7,3.338]
[1755227357068,2.69693962,4637.8,4637.7,3.338]
[1755227357367,0.108,4637.8,4637.7,3.338]
[1755227357866,2.26419474,4637.8,4637.7,3.338]
[1755227358469,0.108,4637.8,4637.7,3.338]
[1755227358841,2.26419474,4637.8,4637.7,3.338]
[1755227360173,0.108,4637.8,4637.7,3.338]
[1755227360542,0.108,4637.8,4637.7,4.2736]
[1755227360743,0.002,4638.2,4637.7,4.2736]
[1755227360744,0.002,4638.2,4637.7,6.53783649]
[1755227361076,0.002,4638.2,4637.8,0.9356]
[1755227361239,0.002,4638.2,4638.0,0.108]
[1755227361643,0.002,4638.2,4638.1,0.9356]
[1755227362642,0.002,4638.2,4638.1,1.0436]
[1755227363242,0.002,4638.2,4638.1,0.108]
[1755227363448,0.002,4638.2,4638.1,4.3971]
[1755227363878,0.002,4638.2,4637.8,4.24799998]
[1755227364076,0.002,4638.2,4638.1,3.339]
[1755227366782,0.002,4638.2,4637.9,0.108]
[1755227366957,0.002,4638.2,4638.1,3.338]
[1755227369884,0.002,4638.2,4638.1,3.335]
[1755227370779,0.002,4638.2,4637.6,0.108]
[1755227370983,0.002,4638.2,4637.7,3.334]
[1755227371386,0.002,4638.2,4637.8,3.334]
[1755227371591,0.002,4638.2,4637.8,4.2881]
[1755227371882,0.002,4638.2,4637.9,0.9541]
[1755227372383,0.002,4638.2,4638.0,0.9541]
[1755227372750,0.002,4638.2,4638.1,0.9541]
[1755227373765,0.002,4638.2,4638.1,1.0621]
[1755227374685,0.002,4638.2,4638.1,0.108]
[1755227375281,0.002,4638.2,4638.1,3.44]
[1755227375664,0.002,4638.2,4638.1,4.3941]
[1755227376695,0.002,4638.2,4638.1,6.55015528]
[1755227377685,0.002,4638.2,4638.1,4.3941]
[1755227377982,0.002,4638.2,4638.1,4.3931]
[1755227378363,0.002,4638.2,4638.1,0.108]
[1755227378887,0.002,4638.2,4638.1,3.438]
[1755227379274,0.002,4638.2,4638.1,4.3921]
[1755227381359,0.002,4638.2,4638.1,6.54815528]
[1755227381759,0.002,4638.2,4638.1,4.3921]
[1755227382195,0.002,4638.2,4638.1,6.54815528]
[1755227384190,0.002,4638.2,4638.1,4.3921]
[1755227384580,0.002,4638.2,4638.1,0.108]
[1755227384785,0.002,4638.2,4638.1,3.435]
[1755227385292,0.002,4638.2,4638.1,0.108]
[1755227385505,0.002,4638.2,4638.1,3.435]
[1755227385871,0.002,4638.2,4638.1,0.108]
[1755227386191,3.05821516,4638.2,4638.1,3.327]
[1755227386394,2.15608573,4638.1,4637.6,0.108]
[1755227386697,2.15614825,4637.9,4637.7,3.327]
[1755227386873,2.15614825,4637.9,4637.8,3.327]
[1755227387065,2.15623039,4637.8,4637.3,0.001]
[1755227387397,2.15628773,4637.6,4637.4,3.327]
[1755227387700,2.15617685,4637.9,4637.4,3.327]
[1755227387900,2.26410717,4638.0,4637.4,3.327]
[1755227388207,0.108,4638.0,4637.4,3.327]
[1755227388404,2.15614825,4637.9,4637.4,3.327]
[1755227388584,2.26410894,4638.0,4637.4,3.327]
[1755227388897,0.108,4638.0,4637.4,3.327]
[1755227389074,2.15605528,4638.1,4637.4,3.327]
[1755227389265,2.15605528,4638.1,4637.5,0.108]
[1755227389602,0.01641705,4638.0,4637.5,0.108]
[1755227389790,2.15627287,4637.7,4637.6,3.327]
[1755227389980,2.58637287,4637.7,4637.6,3.327]
[1755227390525,0.12441705,4637.8,4637.6,3.327]
[1755227390526,2.26420054,4637.8,4637.6,3.327]
[1755227390797,30.0,4637.7,4637.6,3.327]
[1755227391601,2.15630447,4637.6,4637.3,0.001]
[1755227391780,2.58644124,4637.7,4637.6,3.327]
[1755227393096,30.0,4637.6,4637.3,0.001]
[1755227393295,2.26438073,4637.4,4637.3,0.001]
[1755227393605,0.108,4637.4,4637.3,3.329]
[1755227393805,2.26438073,4637.4,4637.3,3.329]
[1755227394174,0.108,4637.4,4637.3,3.329]
[1755227394506,0.108,4637.8,4637.3,4.2235]
[1755227394706,2.15624508,4637.7,4637.3,3.329]
[1755227394907,0.01641705,4637.6,4637.3,0.001]
[1755227395083,2.15633941,4637.5,4637.3,0.001]
[1755227395405,0.01641705,4637.4,4637.3,0.001]
[1755227395596,2.15629033,4637.6,4637.4,3.329]
[1755227396384,30.0,4637.4,4637.3,0.001]
[1755227396586,2.58616,4638.4,4637.3,0.001]
[1755227396587,0.4302,4637.6,4637.3,0.001]
[1755227396800,2.15638073,4637.4,4637.3,0.001]
[1755227397125,0.4302,4637.6,4637.3,0.001]
[1755227397423,32.26434104,4637.5,4637.3,0.001]
[1755227397615,30.0,4637.4,4637.3,0.001]
[1755227397816,30.0,4637.6,4637.3,0.001]
[1755227399398,2.17275128,4637.5,4637.3,0.001]
[1755227399611,32.15638073,4637.4,4637.3,0.001]
[1755227399806,2.58652094,4637.6,4637.3,3.329]
[1755227400118,30.0,4637.5,4637.3,0.001]
[1755227400317,0.108,4637.8,4637.3,0.001]
[1755227400540,2.15614624,4638.0,4637.4,4.3305]
[1755227400728,30.0,4637.9,4637.4,4.3305]
[1755227401224,30.0,4638.0,4637.4,4.3305]
[1755227401394,0.01641705,4637.9,4637.4,1.0025]
[1755227401597,2.1561064,4638.0,4637.5,3.328]
[1755227401833,30.0,4637.9,4637.5,3.328]
[1755227402032,30.0,4638.0,4637.5,3.328]
[1755227402201,30.0,4638.0,4637.5,4.2225]
[1755227404305,0.108,4638.1,4637.5,4.2225]
[1755227404506,0.108,4638.1,4637.5,3.7617]
[1755227405344,0.108,4638.1,4637.5,3.78326334]
[1755227405509,0.108,4638.1,4637.6,0.4608]
[1755227405709,0.002,4638.2,4637.7,0.8945]
[1755227405910,0.002,4638.2,4638.0,0.108]
[1755227406225,0.002,4638.2,4638.1,3.328]
[1755227406428,0.002,4638.2,4638.1,8.47049998]
[1755227406737,0.002,4638.2,4638.1,7.23640528]
[1755227406937,0.002,4638.2,4638.1,7.34440528]
[1755227409941,0.002,4638.2,4638.1,3.328]
[1755227410245,0.002,4638.2,4638.1,4.2225]
[1755227411744,0.002,4638.2,4638.1,3.328]
[1755227412741,0.002,4638.2,4638.1,3.7607]
[1755227413648,0.002,4638.2,4638.1,5.48305528]
[1755227413808,0.002,4638.2,4638.1,6.37755528]
[1755227414663,0.002,4638.2,4638.1,4.2215]
[1755227415013,0.002,4638.2,4638.1,6.37755528]
[1755227416327,0.002,4638.2,4638.1,7.23092496]
[1755227420046,0.002,4638.2,4638.1,7.33892496]
[1755227420247,0.002,4638.2,4638.1,3.11742496]
[1755227420448,0.002,4638.2,4638.1,5.59105528]
[1755227420655,0.002,4638.2,4638.1,6.48555528]
[1755227424223,0.002,4638.2,4638.1,3.15855528]
[1755227424551,0.002,4638.2,4638.1,6.48555528]
[1755227424922,0.002,4638.2,4638.1,5.59105528]
[1755227425122,0.002,4638.2,4638.1,2.26405528]
[1755227425333,0.002,4638.2,4638.1,5.59105528]
[1755227425832,0.002,4638.2,4638.1,0.108]
[1755227426061,0.4631,4638.2,4638.1,0.108]
[1755227426363,0.002,4638.2,4638.1,3.435]
[1755227426722,0.002,4638.2,4638.1,5.59105528]
[1755227427165,0.002,4638.2,4638.1,3.435]
[1755227428153,0.002,4638.2,4638.1,5.59105528]
[1755227429157,0.002,4638.2,4638.1,2.26405528]
[1755227429454,0.002,4638.2,4638.1,0.108]
[1755227429647,0.002,4638.2,4638.1,3.435]
[1755227429849,0.002,4638.2,4638.1,0.108]
[1755227430054,0.4631,4638.2,4638.1,3.435]
[1755227430848,0.4631,4638.2,4637.3,0.001]
[1755227430849,0.9215,4638.2,4637.3,0.001]
[1755227431169,2.2640586,4638.1,4637.4,3.434]
[1755227431661,3.07560521,4638.0,4637.4,3.434]
[1755227431858,2.61450521,4638.0,4637.4,3.434]
[1755227432046,0.4611,4637.9,4637.4,3.434]
[1755227432246,0.9195,4637.8,4637.4,0.108]
[1755227432557,0.9195,4637.8,4637.3,0.001]
[1755227432558,0.4611,4637.8,4637.3,0.001]
[1755227432759,0.108,4637.8,4637.5,3.326]
[1755227433059,3.07578402,4637.7,4637.5,3.326]
[1755227433265,0.9195,4637.6,4637.5,3.326]
[1755227433560,0.9195,4637.6,4637.3,0.001]
[1755227433786,2.15638073,4637.4,4637.3,0.001]
[1755227433961,32.26438073,4637.4,4637.3,0.001]
[1755227434128,33.18388073,4637.4,4637.3,0.001]
[1755227435758,3.18388073,4637.4,4637.3,0.001]
[1755227435940,3.20029778,4637.4,4637.3,0.001]
[1755227436146,33.20029778,4637.4,4637.3,0.001]
[1755227436465,33.20029778,4637.4,4636.3,0.001]
[1755227436466,2.15661325,4636.9,4636.3,0.001]
[1755227436764,43.58112316,4636.9,4636.3,0.001]
[1755227436961,44.48420611,4636.9,4636.3,0.001]
[1755227438139,47.81120611,4636.9,4636.3,0.001]
[1755227442375,44.02580611,4636.9,4636.3,0.001]
[1755227442583,47.35280611,4636.9,4636.3,0.001]
[1755227443075,44.02580611,4636.9,4636.3,0.001]
[1755227443278,46.89170611,4636.9,4636.3,0.001]
[1755227444678,47.35280611,4636.9,4636.3,0.001]
[1755227445066,17.35280611,4636.9,4636.3,0.001]
[1755227445583,47.35280611,4636.9,4636.3,0.001]
[1755227447149,46.89170611,4636.9,4636.3,0.001]
[1755227448182,47.35280611,4636.9,4636.3,0.001]
[1755227448947,47.81120611,4636.9,4636.3,0.001]
[1755227449994,13.45693868,4636.4,4636.3,0.001]
[1755227450201,46.89193868,4636.4,4636.3,0.001]
[1755227450377,47.81143868,4636.4,4636.3,0.001]
[1755227451381,17.81143868,4636.4,4636.3,0.001]
[1755227451978,47.81143868,4636.4,4636.3,0.001]
[1755227453578,47.81143868,4636.4,4636.3,1e-08]
[1755227454304,44.48443868,4636.4,4636.3,1e-08]
[1755227454605,47.81243868,4636.4,4636.3,1e-08]
[1755227455104,44.48443868,4636.4,4636.3,1e-08]
[1755227455302,46.89293868,4636.4,4636.3,1e-08]
[1755227456601,47.35643868,4636.4,4636.3,1e-08]
[1755227456800,47.84553868,4636.4,4636.3,1e-08]
[1755227457110,2.15703192,4636.0,4635.9,0.001]
[1755227457293,35.50144897,4636.0,4635.9,0.001]
[1755227457480,35.59303192,4636.0,4635.9,0.001]
[1755227459776,35.59303192,4636.0,4635.9,0.4465]
[1755227460005,35.59303192,4636.0,4635.9,0.8984]
[1755227460412,36.05665972,4636.0,4635.9,0.8984]
[1755227460714,36.05665892,4636.0,4635.9,0.001]
[1755227462219,36.25840093,4636.0,4635.9,0.001]
[1755227466247,36.83826004,4636.0,4635.9,0.001]
[1755227466539,36.83857977,4636.0,4635.9,0.001]
[1755227466946,36.83857977,4636.0,4635.9,0.8984]
[1755227467446,33.51057977,4636.0,4635.9,0.8984]
[1755227467601,36.25772066,4636.0,4635.9,0.8984]
[1755227467997,32.93072066,4636.0,4635.9,0.8984]
[1755227468266,36.25772066,4636.0,4635.9,0.8984]
[1755227468680,6.0559192,4636.0,4635.9,0.8984]
[1755227469178,36.0559192,4636.0,4635.9,0.8984]
[1755227470835,33.89888728,4636.0,4635.9,0.8984]
[1755227471085,0.108,4636.1,4635.9,0.8984]
[1755227471246,30.0,4636.0,4635.9,0.001]
[1755227471446,2.26498592,4636.1,4635.9,0.001]
[1755227471635,2.15703192,4636.0,4635.9,0.001]
[1755227471836,32.15703192,4636.0,4635.9,0.001]
[1755227472089,35.94901228,4636.0,4635.9,0.001]
[1755227474207,32.62201228,4636.0,4635.9,0.001]
[1755227474368,36.05701228,4636.0,4635.9,0.8984]
[1755227476389,36.05701228,4636.0,4635.9,0.001]
[1755227481090,36.05614946,4636.0,4635.9,0.001]
[1755227482689,36.05514946,4636.0,4635.9,0.001]
[1755227488838,36.50188617,4636.0,4635.9,0.001]
[1755227492933,36.05558617,4636.0,4635.9,0.001]
[1755227494152,6.05558617,4636.0,4635.9,0.001]
[1755227494660,36.05558617,4636.0,4635.9,0.001]
[1755227496359,36.96858617,4636.0,4635.9,0.001]
[1755227496860,2.15714859,4635.8,4635.5,0.001]
[1755227497070,14.03882022,4635.6,4635.5,0.001]
[1755227497270,44.03072798,4635.6,4635.5,0.001]
[1755227497428,44.94372798,4635.6,4635.5,0.001]
[1755227498139,2.15726458,4635.5,4635.4,0.001]
[1755227498346,36.8770987,4635.5,4635.4,0.001]
[1755227498554,36.86068165,4635.5,4635.4,1e-08]
[1755227498775,37.44219096,4635.5,4635.4,1e-08]
[1755227499347,36.86068165,4635.5,4635.4,1e-08]
[1755227499543,2.15731112,4635.4,4635.3,1e-08]
[1755227499878,33.55214524,4635.4,4635.3,1e-08]
[1755227500058,34.11692377,4635.4,4635.3,1e-08]
[1755227500253,3.53572819,4635.4,4635.3,1e-08]
[1755227500458,34.33507345,4635.4,4635.3,1e-08]
[1755227500669,34.3186564,4635.4,4635.3,1e-08]
[1755227501748,34.11692377,4635.4,4635.3,1e-08]
[1755227501948,33.73733096,4635.4,4635.3,1e-08]
[1755227503277,2.1574973,4635.0,4634.9,1e-08]
[1755227503500,46.90700721,4635.0,4634.9,1e-08]
[1755227503676,47.35600723,4635.0,4634.9,1e-08]
[1755227506369,17.35600723,4635.0,4634.9,1e-08]
[1755227506780,47.35600723,4635.0,4634.9,1e-08]
[1755227507498,17.35600723,4635.0,4634.9,1e-08]
[1755227507871,47.35600723,4635.0,4634.9,1e-08]
[1755227512805,44.03100723,4635.0,4634.9,1e-08]
[1755227512986,47.35600723,4635.0,4634.9,1e-08]
[1755227515200,47.81290723,4635.0,4634.9,1e-08]
[1755227515517,47.35600723,4635.0,4634.9,1e-08]
[1755227515686,47.35600723,4635.0,4634.4,0.001]
[1755227515687,2.15754385,4634.9,4634.8,1e-08]
[1755227515887,35.96437797,4634.9,4634.8,1e-08]
[1755227516101,35.94796092,4634.9,4634.8,1e-08]
[1755227518861,2.15773006,4634.5,4634.4,1e-08]
[1755227519047,46.79823997,4634.5,4634.4,1e-08]
[1755227519246,47.24723999,4634.5,4634.4,1e-08]
[1755227519421,47.35523999,4634.5,4634.4,1e-08]
[1755227521936,47.35523999,4634.5,4633.6,0.4698]
[1755227521937,2.15842866,4633.0,4632.9,0.4324]
[1755227522122,35.60684571,4633.0,4632.9,0.4324]
[1755227522322,35.59042866,4633.0,4632.9,0.4324]
[1755227522647,5.59042866,4633.0,4632.9,0.9022]
[1755227523070,2.15875483,4632.3,4632.2,0.4698]
[1755227523356,11.30009286,4633.2,4631.2,2.15925033]
[1755227523357,0.108,4632.0,4631.5,2.15911687]
[1755227523566,0.108,4632.2,4631.6,0.22671169]
[1755227523735,0.108,4632.2,4631.7,0.4698]
[1755227523935,0.108,4632.2,4631.8,0.4324]
[1755227524328,0.108,4632.6,4632.0,0.108]
[1755227524529,0.108,4632.6,4632.1,0.31691464]
[1755227524734,0.108,4632.6,4632.1,0.9022]
[1755227524935,0.108,4632.6,4632.2,0.9022]
[1755227525132,0.108,4632.6,4632.5,2.15866162]
[1755227525417,3.324,4633.4,4632.3,2.15875483]
[1755227525418,3.324,4633.4,4632.4,2.15870708]
[1755227525622,30.01641705,4633.3,4632.5,1.31629071]
[1755227525823,3.432,4633.4,4632.5,0.108]
[1755227526040,30.0,4633.3,4632.6,0.9022]
[1755227526252,30.0,4633.3,4632.5,2.26664932]
[1755227526452,30.0,4633.3,4632.7,0.9022]
[1755227526652,30.0,4633.3,4632.5,2.26664932]
[1755227526852,30.0,4633.3,4632.8,0.9022]
[1755227527056,3.432,4633.4,4632.9,0.9022]
[1755227527260,0.108,4633.4,4632.5,0.108]
[1755227527466,0.108,4633.4,4633.0,0.9022]
[1755227527671,0.108,4633.4,4633.1,0.9022]
[1755227528262,0.108,4633.4,4633.2,0.9022]
[1755227528471,0.108,4633.4,4633.3,0.9022]
[1755227528648,3.432,4633.8,4633.3,0.9022]
[1755227528848,0.108,4633.8,4633.4,0.9022]
[1755227529081,2.15810447,4633.7,4633.5,0.9022]
[1755227529281,2.12130447,4633.7,4633.1,0.108]
[1755227529582,2.12130447,4633.7,4633.6,0.9022]
[1755227529758,0.108,4633.8,4633.6,0.9022]
[1755227529965,0.108,4633.8,4633.1,0.33465154]
[1755227529966,0.108,4633.8,4633.7,0.9022]
[1755227531466,2.15797572,4634.0,4633.7,0.9022]
[1755227531672,32.15800957,4633.9,4633.7,0.9022]
[1755227531856,30.0,4633.8,4633.1,0.33465154]
[1755227532058,30.0,4633.8,4633.2,0.9022]
[1755227532365,30.0,4633.8,4633.3,0.9022]
[1755227532569,30.0,4633.8,4633.4,0.9022]
[1755227532570,2.15810654,4633.7,4633.4,0.9022]
[1755227532747,2.26610654,4633.7,4633.1,0.108]
[1755227533071,0.108,4633.7,4633.5,0.9022]
[1755227533245,0.108,4633.7,4633.1,0.108]
[1755227533446,2.26610259,4633.7,4633.6,0.9022]
[1755227535264,2.15818268,4633.6,4633.3,0.9022]
[1755227535570,2.15818268,4633.6,4633.4,0.9022]
[1755227535787,2.15819574,4633.5,4633.4,0.9022]
[1755227535941,2.15824705,4633.4,4633.1,0.9022]
[1755227536149,2.26624705,4633.4,4633.1,0.9022]
[1755227536448,2.26624705,4633.4,4632.7,0.108]
[1755227536449,2.26624705,4633.4,4633.2,0.9022]
[1755227536649,2.26624705,4633.4,4633.2,0.4698]
[1755227536849,2.26624705,4633.4,4633.3,0.4324]
[1755227537385,2.26624705,4633.4,4633.0,0.4324]
[1755227537592,2.26624705,4633.4,4632.7,0.108]
[1755227537751,0.108,4633.4,4633.1,0.9022]
[1755227537954,0.108,4633.4,4633.2,0.9022]
[1755227538148,2.26625173,4633.4,4633.3,0.4698]
[1755227538346,2.26625173,4633.4,4633.3,0.9022]
[1755227539186,0.108,4633.4,4633.3,0.9022]
[1755227540064,2.26624232,4633.4,4633.3,0.9022]
[1755227541373,2.15831968,4633.3,4633.0,0.4324]
[1755227541586,0.108,4633.4,4633.1,0.9022]
[1755227541988,2.15833086,4633.3,4633.1,0.9022]
[1755227542464,2.26624691,4633.4,4633.1,0.4578]
[1755227542662,2.26624691,4633.4,4633.1,0.9112]
[1755227542863,2.15829869,4633.3,4633.1,0.9112]
[1755227543180,2.15829869,4633.3,4632.9,0.9112]
[1755227543482,2.15829869,4633.3,4633.1,0.9112]
[1755227543672,0.108,4633.4,4633.1,0.9112]
[1755227544183,2.1582889,4633.3,4633.1,0.9112]
[1755227544583,0.108,4633.4,4633.1,0.9112]
[1755227544778,2.15833549,4633.2,4633.1,0.9112]
[1755227545568,0.108,4633.4,4633.1,0.9112]
[1755227545569,2.26628794,4633.4,4633.1,0.9112]
[1755227546084,2.15829091,4633.3,4633.2,0.9112]
[1755227547564,2.2662497,4633.4,4633.2,0.9112]
[1755227547867,2.1582889,4633.3,4633.2,0.9112]
[1755227548163,2.15829915,4633.3,4632.8,0.9122]
[1755227548373,3.33841705,4633.2,4632.8,0.001]
[1755227548578,2.26647525,4632.9,4632.8,0.001]
[1755227548765,2.26647525,4632.9,4632.1,0.001]
[1755227548766,2.15880143,4632.2,4632.1,0.001]
[1755227548978,5.58880143,4632.2,4632.1,0.001]
[1755227549164,6.01950143,4632.2,4632.1,0.001]
[1755227549359,36.01950143,4632.2,4632.1,0.001]
[1755227550862,36.98343577,4632.2,4632.1,0.001]
[1755227551263,36.98343577,4632.2,4632.1,1e-08]
[1755227552679,6.98343577,4632.2,4632.1,1e-08]
[1755227552870,2.73103577,4632.2,4632.1,1e-08]
[1755227553072,36.98343577,4632.2,4632.1,1e-08]
[1755227557694,6.98343577,4632.2,4632.1,1e-08]
[1755227558185,36.98343577,4632.2,4632.1,1e-08]
[1755227559223,36.51920143,4632.2,4632.1,1e-08]
[1755227559751,6.98148656,4632.2,4632.1,1e-08]
[1755227559882,6.98148656,4632.2,4631.7,0.001]
[1755227559883,11.30009286,4630.8,4630.7,0.001]
[1755227560084,16.88954695,4630.8,4630.7,0.001]
[1755227560513,47.81994695,4630.8,4630.7,0.001]
[1755227561429,47.48476898,4630.8,4630.7,0.001]
[1755227561587,47.98446898,4630.8,4630.7,0.001]
[1755227561783,47.59156588,4630.8,4630.7,0.001]
[1755227562093,35.58945409,4630.8,4630.7,0.001]
[1755227564746,35.75300578,4630.8,4630.7,0.001]
[1755227565251,36.18370578,4630.8,4630.7,1e-08]
[1755227565414,36.68340578,4630.8,4630.7,1e-08]
[1755227566427,36.18370578,4630.8,4630.7,1e-08]
[1755227566722,36.18370578,4630.8,4630.0,0.001]
[1755227566723,2.15978056,4630.1,4630.0,0.001]
[1755227567045,46.90629047,4630.1,4630.0,0.001]
[1755227567342,47.32057342,4630.1,4630.0,0.001]
[1755227567549,46.88987342,4630.1,4630.0,0.001]
[1755227568144,43.56787342,4630.1,4630.0,0.001]
[1755227568342,46.88987342,4630.1,4630.0,0.001]
[1755227568714,35.58978056,4630.1,4630.0,0.001]
[1755227570134,35.58978056,4630.1,4630.0,0.9122]
[1755227570340,32.26778056,4630.1,4630.0,0.9122]
[1755227570742,3.43,4630.1,4630.0,0.9122]
[1755227570938,0.108,4630.1,4630.0,0.9122]
[1755227571170,2.1595473,4630.7,4630.0,0.9122]
[1755227571368,0.108,4630.4,4630.0,0.3084154]
[1755227571583,0.108,4630.4,4630.1,0.9112]
[1755227571777,0.108,4630.4,4630.0,0.001]
[1755227571778,33.322,4630.3,4630.2,0.9208]
[1755227572287,46.88978013,4630.3,4630.0,0.001]
[1755227572582,30.01641705,4630.2,4630.0,0.001]
[1755227572745,33.322,4630.1,4630.0,0.001]
[1755227573479,35.48178056,4630.1,4630.0,0.001]
[1755227574566,5.58978056,4630.1,4630.0,0.9218]
[1755227576445,6.38978056,4630.1,4630.0,0.9218]
[1755227576646,0.908,4630.1,4630.0,0.9218]
[1755227576974,6.38978056,4630.1,4630.0,0.9218]
[1755227578673,36.38978056,4630.1,4630.0,0.9218]
[1755227578883,36.85329475,4630.1,4630.0,0.9218]
[1755227579062,36.38978056,4630.1,4630.0,0.9218]
[1755227579380,36.85350121,4630.1,4630.0,0.001]
[1755227579751,37.43351842,4630.1,4630.0,0.001]
[1755227579947,36.85350121,4630.1,4630.0,0.001]
[1755227580286,37.05481059,4630.1,4630.0,0.001]
[1755227580841,36.85350121,4630.1,4630.0,0.001]
[1755227581046,37.43332287,4630.1,4630.0,0.9218]
[1755227581447,6.85350121,4630.1,4630.0,0.9218]
[1755227581854,33.53150121,4630.1,4630.0,0.9218]
[1755227582056,1.37172065,4630.1,4630.0,0.9218]
[1755227582268,6.85350121,4630.1,4630.0,0.9218]
[1755227582775,36.85350121,4630.1,4630.0,0.001]
[1755227583481,36.85350121,4630.1,4630.0,0.9218]
[1755227583671,33.53150121,4630.1,4630.0,0.9218]
[1755227583848,36.85350121,4630.1,4630.0,0.9218]
[1755227585185,36.85350121,4630.1,4630.0,0.001]
[1755227586248,37.43365761,4630.1,4630.0,0.001]
[1755227588144,36.85350121,4630.1,4630.0,0.001]
[1755227588589,34.11292517,4630.1,4630.0,0.001]
[1755227588773,36.85250121,4630.1,4630.0,0.9218]
[1755227588969,37.43392517,4630.1,4630.0,0.9218]
[1755227589358,37.43392517,4630.1,4630.0,0.001]
[1755227590258,33.42350121,4630.1,4630.0,0.001]
[1755227590459,34.11374009,4630.1,4630.0,0.9218]
[1755227590685,37.43474009,4630.1,4630.0,0.9218]
[1755227590991,34.11374009,4630.1,4630.0,0.001]
[1755227591288,6.74450121,4630.1,4630.0,0.001]
[1755227591458,7.32674009,4630.1,4630.0,0.001]
[1755227592089,36.94664789,4630.1,4630.0,0.001]
[1755227592557,37.72293949,4630.1,4630.0,0.001]
[1755227592757,36.94664789,4630.1,4630.0,0.001]
[1755227593255,37.72292111,4630.1,4630.0,0.001]
[1755227594494,38.16232111,4630.1,4630.0,0.001]
[1755227594990,36.94664789,4630.1,4630.0,0.001]
[1755227595287,37.84754789,4630.1,4630.0,1e-08]
[1755227595487,37.84754789,4630.1,4629.7,0.001]
[1755227595488,2.15992051,4629.8,4629.7,0.001]
[1755227595796,36.84460736,4629.8,4629.7,0.001]
[1755227595963,37.03033699,4629.8,4629.7,0.001]
[1755227596801,2.16001382,4629.6,4629.5,0.001]